bitfinex-derivatives/quotes_BTCF0:USTF0_20241120
["timestamp","ask_amount","ask_price","bid_price","bid_amount"]
[1732082776459,0.20428688,92683.0,92682.0,0.31987218]
[1732082776857,0.20428688,92683.0,92680.0,0.00161834]
[1732082776858,0.053891,92681.0,92680.0,0.00161834]
[1732082777061,0.414691,92681.0,92680.0,0.00161834]
[1732082777361,0.414691,92681.0,92680.0,0.00197834]
[1732082777574,0.48433444,92681.0,92680.0,0.00197834]
[1732082777755,0.50730469,92681.0,92680.0,0.00197834]
[1732082780866,0.14650469,92681.0,92680.0,0.00197834]
[1732082781371,0.07686125,92681.0,92680.0,0.00197834]
[1732082782862,0.053884,92694.0,92680.0,0.00197834]
[1732082782863,0.3633,92701.0,92680.0,0.07162178]
[1732082783062,0.06964344,92682.0,92680.0,0.00197834]
[1732082783264,0.053891,92681.0,92680.0,0.00197834]
[1732082783572,0.053891,92681.0,92680.0,1.00036]
[1732082783758,0.117191,92681.0,92680.0,1.00036]
[1732082784159,0.117191,92681.0,92680.0,1.31988041]
[1732082785163,0.117191,92681.0,92680.0,1.31986699]
[1732082785568,0.117191,92681.0,92680.0,1.00036]
[1732082785766,0.053891,92681.0,92680.0,1.00036]
[1732082785965,0.053891,92681.0,92680.0,1.31986699]
[1732082786573,0.08218295,92681.0,92680.0,1.31986699]
[1732082787671,0.08218295,92681.0,92680.0,1.00036]
[1732082789971,0.17994295,92681.0,92680.0,1.00036]
[1732082792076,0.20151366,92681.0,92680.0,1.00036]
[1732082792379,0.10375366,92681.0,92680.0,1.00036]
[1732082792584,0.20151366,92681.0,92680.0,1.00036]
[1732082796272,0.20151366,92681.0,92680.0,0.63095691]
[1732082796273,0.52519366,92681.0,92680.0,0.63095691]
[1732082797171,0.42743366,92681.0,92680.0,0.63095691]
[1732082797371,0.52519366,92681.0,92680.0,0.63095691]
[1732082797672,1.18599366,92681.0,92680.0,0.26391686]
[1732082797870,1.21619366,92681.0,92680.0,0.11047057]
[1732082799282,0.053897,92671.0,92670.0,0.005]
[1732082799484,0.053903,92661.0,92660.0,0.005]
[1732082799787,0.06964344,92661.0,92656.0,0.31950699]
[1732082799989,0.12354844,92657.0,92656.0,0.31950699]
[1732082801490,0.06964344,92657.0,92654.0,0.31950699]
[1732082801785,0.053907,92655.0,92654.0,0.31950699]
[1732082802489,0.12355044,92655.0,92654.0,0.32000461]
[1732082802686,0.053908,92653.0,92652.0,0.3608]
[1732082803190,0.12355144,92653.0,92652.0,0.3608]
[1732082803489,0.22131144,92653.0,92652.0,0.3608]
[1732082803686,0.151668,92653.0,92652.0,0.3608]
[1732082803879,0.2503439,92653.0,92652.0,0.3608]
[1732082804783,0.28506412,92653.0,92652.0,0.3608]
[1732082805485,0.28506412,92653.0,92652.0,0.68080461]
[1732082805985,0.28506412,92653.0,92652.0,0.3608]
[1732082806189,0.02903246,92653.0,92652.0,0.3608]
[1732082806391,0.09776,92653.0,92652.0,0.3608]
[1732082806786,0.151668,92653.0,92652.0,0.3608]
[1732082807980,0.09776,92653.0,92652.0,0.3608]
[1732082808179,0.151668,92653.0,92652.0,0.3608]
[1732082808582,0.10436366,92659.0,92652.0,0.3608]
[1732082808800,0.38954857,92663.0,92652.0,0.3608]
[1732082808801,0.09776,92661.0,92657.0,0.053905]
[1732082809683,0.09776,92661.0,92657.0,0.37390961]
[1732082810581,0.09776,92663.0,92657.0,0.37390961]
[1732082810783,0.09776,92663.0,92660.0,0.3608]
[1732082810994,0.09776,92663.0,92661.0,0.0304]
[1732082811204,0.02878831,92667.0,92666.0,0.0539]
[1732082811380,0.02878831,92667.0,92661.0,0.0304]
[1732082811381,0.005,92677.0,92665.0,0.3608]
[1732082811588,0.005,92677.0,92671.0,0.053897]
[1732082811892,0.09952,92678.0,92674.0,0.31975637]
[1732082812689,0.053893,92679.0,92675.0,0.78085306]
[1732082812998,0.153413,92679.0,92675.0,0.31975637]
[1732082813200,0.005,92684.0,92677.0,0.053894]
[1732082813399,0.05389,92683.0,92677.0,0.31975637]
[1732082813695,0.05389,92683.0,92678.0,0.31975637]
[1732082814195,0.05389,92683.0,92680.0,0.31975637]
[1732082814400,0.053891,92681.0,92680.0,0.31975637]
[1732082815287,0.053891,92681.0,92670.0,0.005]
[1732082815288,0.053894,92677.0,92676.0,0.31975637]
[1732082815484,0.15825766,92677.0,92675.0,0.31975637]
[1732082815684,0.15825766,92677.0,92666.0,0.0647]
[1732082815685,0.053897,92673.0,92671.0,0.31975637]
[1732082815885,0.053898,92670.0,92669.0,0.31975637]
[1732082816086,0.053898,92670.0,92666.0,0.0647]
[1732082816087,0.053898,92670.0,92667.0,0.31975637]
[1732082816300,0.053899,92669.0,92668.0,0.31975637]
[1732082816794,0.153379,92669.0,92668.0,0.31975637]
[1732082816986,0.0539,92667.0,92666.0,0.38445637]
[1732082817301,0.15338,92667.0,92666.0,0.0319]
[1732082817489,0.15338,92667.0,92666.0,0.065]
[1732082817799,0.09948,92667.0,92666.0,0.84679584]
[1732082818100,0.09948,92667.0,92666.0,0.52703947]
[1732082819203,0.09948,92667.0,92666.0,0.38486569]
[1732082819508,0.09948,92667.0,92666.0,0.84674646]
[1732082819695,0.02157329,92679.0,92666.0,0.52688077]
[1732082819895,0.09948,92678.0,92672.0,0.37377673]
[1732082820093,0.09948,92678.0,92677.0,0.3608]
[1732082820394,0.09948,92678.0,92677.0,0.8223849]
[1732082820697,0.09948,92678.0,92677.0,1.14215573]
[1732082820995,0.09948,92678.0,92677.0,0.82238129]
[1732082822189,0.09948,92678.0,92677.0,1.14211424]
[1732082822383,0.09948,92683.0,92677.0,0.82238129]
[1732082822691,0.09948,92683.0,92681.0,0.3736171]
[1732082822898,0.00073569,92686.0,92682.0,0.3509261]
[1732082823093,0.00073569,92686.0,92682.0,0.0312]
[1732082824092,0.00073569,92686.0,92682.0,0.3509261]
[1732082824605,0.05462469,92686.0,92682.0,0.0312]
[1732082824907,0.05462469,92686.0,92682.0,0.3509261]
[1732082825500,0.05462469,92686.0,92682.0,0.0312]
[1732082825797,0.15410469,92686.0,92683.0,0.3197261]
[1732082826297,0.15410469,92686.0,92682.0,0.3509261]
[1732082827591,0.15410469,92686.0,92682.0,0.0312]
[1732082827999,0.00073569,92686.0,92685.0,0.3608]
[1732082828594,0.00073569,92686.0,92685.0,0.3919]
[1732082830410,0.00073569,92686.0,92685.0,0.55015266]
[1732082830608,0.053882,92698.0,92685.0,0.49626366]
[1732082830805,0.053882,92698.0,92695.0,0.24538138]
[1732082831002,0.053882,92698.0,92697.0,0.19149838]
[1732082831400,0.053878,92704.0,92696.0,0.053882]
[1732082831716,0.053878,92704.0,92693.0,0.46516366]
[1732082831717,0.053878,92704.0,92703.0,0.3608]
[1732082833398,0.0319,92712.0,92703.0,0.3608]
[1732082833399,0.053875,92710.0,92703.0,0.3608]
[1732082833598,0.053875,92710.0,92704.0,0.0307]
[1732082833815,0.05054337,92713.0,92704.0,0.0307]
[1732082833816,0.053875,92709.0,92704.0,0.0307]
[1732082834106,0.053876,92708.0,92704.0,0.0307]
[1732082834310,0.053877,92706.0,92704.0,0.0307]
[1732082835614,0.05388,92701.0,92700.0,0.19147939]
[1732082835794,0.05388,92701.0,92693.0,0.19147939]
[1732082835795,0.15824366,92701.0,92693.0,0.19147939]
[1732082835996,0.09948,92700.0,92696.0,0.3608]
[1732082836200,0.09948,92703.0,92698.0,0.053881]
[1732082836411,0.09948,92703.0,92702.0,0.19143171]
[1732082837414,0.09948,92703.0,92699.0,0.25516451]
[1732082837601,0.09948,92703.0,92702.0,0.1914309]
[1732082838002,0.153359,92703.0,92702.0,0.1914309]
[1732082838304,0.153359,92703.0,92699.0,0.25516451]
[1732082838509,0.02156729,92713.0,92699.0,0.25516451]
[1732082838708,0.053876,92708.0,92704.0,0.19148598]
[1732082839108,0.053876,92708.0,92700.0,0.25516451]
[1732082839109,0.053876,92708.0,92706.0,0.19148598]
[1732082840115,0.053876,92708.0,92701.0,0.25516451]
[1732082840319,0.053876,92708.0,92702.0,0.25516451]
[1732082840704,0.053876,92708.0,92707.0,0.19153168]
[1732082840905,0.053876,92708.0,92702.0,0.25516451]
[1732082841204,0.053877,92707.0,92704.0,0.19153135]
[1732082841405,0.053877,92707.0,92706.0,0.19153135]
[1732082842612,0.156477,92707.0,92705.0,0.19153135]
[1732082843007,0.156477,92707.0,92706.0,0.19153135]
[1732082844028,0.053878,92704.0,92703.0,0.19153135]
[1732082844207,0.053878,92704.0,92699.0,0.25516451]
[1732082844409,0.053878,92704.0,92701.0,0.25516451]
[1732082844614,0.053878,92704.0,92702.0,0.25516451]
[1732082846613,0.053878,92704.0,92703.0,0.25516451]
[1732082847007,0.156476,92708.0,92703.0,0.25516451]
[1732082847213,0.1026,92708.0,92704.0,0.0308]
[1732082847413,0.053877,92707.0,92704.0,0.28596451]
[1732082847821,0.053877,92707.0,92705.0,0.25516451]
[1732082848018,0.36085,92720.0,92709.0,0.053875]
[1732082848206,0.36085,92720.0,92706.0,0.3608]
[1732082848207,0.1026,92714.0,92710.0,0.25564037]
[1732082848411,0.1026,92714.0,92706.0,0.6805261]
[1732082848412,0.053873,92712.0,92706.0,0.6805261]
[1732082849316,0.053873,92712.0,92707.0,0.76881462]
[1732082849522,0.053873,92712.0,92707.0,0.3197261]
[1732082850919,0.053873,92712.0,92708.0,0.3608]
[1732082851313,0.053873,92712.0,92710.0,0.25582866]
[1732082851516,0.053873,92712.0,92711.0,0.25582866]
[1732082852520,0.053873,92712.0,92710.0,0.00862]
[1732082853924,0.1026,92715.0,92710.0,0.00862]
[1732082854228,0.053872,92714.0,92713.0,0.25603191]
[1732082854410,0.1026,92715.0,92712.0,0.25603191]
[1732082854411,0.053873,92713.0,92712.0,0.25603191]
[1732082854614,0.053874,92711.0,92710.0,0.00862]
[1732082855429,0.10436366,92712.0,92710.0,0.26472617]
[1732082855634,0.15823666,92712.0,92711.0,0.25615915]
[1732082856315,0.10436366,92712.0,92710.0,0.26477915]
[1732082856517,0.10436366,92712.0,92710.0,0.00862]
[1732082856518,0.053874,92711.0,92710.0,0.00862]
[1732082858628,0.084174,92711.0,92710.0,0.00862]
[1732082858822,0.117074,92711.0,92710.0,0.00862]
[1732082859326,0.147774,92711.0,92710.0,0.00862]
[1732082861925,0.147774,92711.0,92710.0,0.26520549]
[1732082862117,0.147774,92711.0,92710.0,0.00862]
[1732082862322,0.147774,92711.0,92710.0,0.26520758]
[1732082863328,0.147774,92711.0,92710.0,0.00862]
[1732082864523,0.147774,92711.0,92710.0,0.2010366]
[1732082865425,0.147774,92711.0,92710.0,0.20102583]
[1732082865621,0.219674,92711.0,92710.0,0.00862]
[1732082866029,0.219674,92711.0,92710.0,0.26520758]
[1732082866325,0.219674,92711.0,92710.0,0.00862]
[1732082868030,0.156474,92711.0,92710.0,0.00862]
[1732082868330,0.156474,92711.0,92710.0,0.04152]
[1732082868631,0.156474,92711.0,92710.0,0.29798282]
[1732082868838,0.156474,92711.0,92710.0,0.04152]
[1732082869231,0.053874,92711.0,92710.0,0.04152]
[1732082869429,0.156474,92711.0,92710.0,0.04152]
[1732082869632,0.156474,92711.0,92710.0,0.29791289]
[1732082870335,0.17804041,92711.0,92710.0,0.29791289]
[1732082870729,0.156474,92711.0,92710.0,0.29791289]
[1732082872633,0.22609191,92711.0,92710.0,0.04152]
[1732082873041,0.22609191,92711.0,92710.0,0.29791075]
[1732082874427,0.22609191,92711.0,92710.0,0.04152]
[1732082877348,0.22609191,92711.0,92710.0,0.00862]
[1732082877730,0.22609191,92711.0,92710.0,0.2009838]
[1732082878041,0.22609191,92711.0,92710.0,0.00862]
[1732082879052,0.22609191,92711.0,92710.0,0.20099227]
[1732082879347,0.22609191,92711.0,92710.0,0.00862]
[1732082879536,0.54969191,92711.0,92710.0,0.00862]
[1732082879847,0.54969191,92711.0,92707.0,0.19237227]
[1732082879848,0.053876,92708.0,92707.0,0.19237227]
[1732082880037,0.414676,92708.0,92707.0,0.19237227]
[1732082880233,0.053878,92705.0,92704.0,0.25644519]
[1732082880435,0.414676,92708.0,92696.0,0.3247261]
[1732082880436,0.053882,92697.0,92696.0,0.3247261]
[1732082880742,0.22609991,92697.0,92696.0,0.3197261]
[1732082881446,0.17221791,92697.0,92696.0,0.00863]
[1732082881634,0.22609991,92697.0,92696.0,0.00863]
[1732082881943,0.25505281,92697.0,92696.0,0.00863]
[1732082883236,0.57869281,92697.0,92696.0,0.00863]
[1732082883439,0.57869281,92697.0,92690.0,0.19742709]
[1732082883440,0.053886,92691.0,92690.0,0.005]
[1732082883639,0.053886,92691.0,92684.0,0.25654054]
[1732082883640,0.053887,92689.0,92687.0,0.19242709]
[1732082883850,0.053887,92689.0,92688.0,0.19242709]
[1732082884052,0.12350491,92689.0,92688.0,0.19242709]
[1732082884454,0.12350491,92689.0,92687.0,0.19242709]
[1732082884654,0.10427605,92689.0,92683.0,0.25654054]
[1732082884948,0.053887,92688.0,92687.0,0.19226126]
[1732082885449,0.10427605,92689.0,92684.0,0.00863]
[1732082885450,0.053889,92685.0,92684.0,0.00863]
[1732082885646,0.156489,92685.0,92684.0,0.00863]
[1732082887538,0.156489,92685.0,92684.0,0.0356]
[1732082890238,0.18469066,92685.0,92684.0,0.0356]
[1732082892149,0.08209066,92685.0,92684.0,0.0356]
[1732082892337,0.18469066,92685.0,92684.0,0.0356]
[1732082896748,0.18469066,92685.0,92684.0,0.22770729]
[1732082897356,0.18469066,92685.0,92684.0,0.0356]
[1732082897860,0.18469066,92685.0,92684.0,0.22770434]
[1732082898357,0.18469066,92685.0,92684.0,0.0356]
[1732082903060,0.28896671,92685.0,92684.0,0.0356]
[1732082903559,0.61264671,92685.0,92684.0,0.02697]
[1732082903862,0.053893,92679.0,92678.0,0.005]
[1732082904064,0.053894,92677.0,92676.0,0.1921879]
[1732082904562,0.053894,92677.0,92671.0,0.0322]
[1732082904563,0.053896,92673.0,92672.0,0.25614372]
[1732082904868,0.22469437,92673.0,92672.0,0.25614372]
[1732082905247,0.22469437,92673.0,92672.0,0.26477372]
[1732082906362,0.22469437,92673.0,92672.0,0.00863]
[1732082907463,0.22469437,92673.0,92672.0,0.26477372]
[1732082908855,0.2524709,92673.0,92672.0,0.26477372]
[1732082911465,0.2524709,92673.0,92672.0,0.26508647]
[1732082911671,0.10112,92685.0,92672.0,0.47180837]
[1732082911860,0.10112,92685.0,92684.0,0.25642047]
[1732082912062,0.10112,92685.0,92679.0,0.06967837]
[1732082912269,0.10112,92685.0,92680.0,0.0308]
[1732082912661,0.12982459,92685.0,92680.0,0.0308]
[1732082913167,0.06967837,92684.0,92680.0,0.0308]
[1732082913676,0.06967837,92684.0,92681.0,0.02697]
[1732082913971,0.10112,92683.0,92681.0,0.02697]
[1732082916977,0.15501,92683.0,92681.0,0.02697]
[1732082917373,0.053891,92682.0,92681.0,0.02697]
[1732082917874,0.12356937,92682.0,92681.0,0.02697]
[1732082919072,0.053891,92682.0,92681.0,0.02697]
[1732082919271,0.12356937,92682.0,92681.0,0.02697]
[1732082919570,0.053891,92682.0,92681.0,0.02697]
[1732082920183,0.12356937,92682.0,92681.0,0.02697]
[1732082920374,0.18566937,92682.0,92681.0,0.02697]
[1732082920674,0.053894,92677.0,92676.0,0.005]
[1732082920874,0.053895,92675.0,92674.0,0.1923041]
[1732082921068,0.053895,92675.0,92671.0,0.0322]
[1732082921269,0.43047837,92677.0,92671.0,0.0322]
[1732082921270,0.053896,92673.0,92672.0,0.26501084]
[1732082921569,0.053896,92673.0,92672.0,0.00863]
[1732082921965,0.053896,92673.0,92672.0,0.26506534]
[1732082922172,0.0621,92682.0,92672.0,0.26506534]
[1732082922374,0.10112,92683.0,92673.0,0.25643534]
[1732082922375,0.053893,92678.0,92673.0,0.25643534]
[1732082923069,0.06967837,92679.0,92673.0,0.25643534]
[1732082923272,0.053894,92677.0,92673.0,0.25643534]
[1732082923478,0.06967837,92679.0,92674.0,0.25643534]
[1732082923878,0.12357137,92679.0,92674.0,0.25643534]
[1732082924073,0.053893,92678.0,92674.0,0.25643534]
[1732082924384,0.10112,92677.0,92674.0,0.25643534]
[1732082924678,0.10112,92677.0,92673.0,0.25643534]
[1732082924886,0.10112,92677.0,92676.0,0.19243063]
[1732082925176,0.10112,92677.0,92672.0,0.25643534]
[1732082925177,0.10112,92677.0,92674.0,0.00863]
[1732082925381,0.10112,92677.0,92676.0,0.19245886]
[1732082925571,0.10112,92677.0,92674.0,0.00863]
[1732082927277,0.10112,92677.0,92675.0,0.02697]
[1732082930579,0.053893,92678.0,92675.0,0.02697]
[1732082930767,0.10112,92677.0,92675.0,0.02697]
[1732082930968,0.10112,92677.0,92675.0,0.3466961]
[1732082931166,0.10112,92677.0,92676.0,0.3197261]
[1732082931681,0.10112,92677.0,92675.0,0.3466961]
[1732082932584,0.10112,92677.0,92676.0,0.3197261]
[1732082933077,0.10112,92677.0,92675.0,0.3466961]
[1732082933474,0.10112,92677.0,92676.0,0.3197261]
[1732082933876,0.10112,92677.0,92676.0,0.75617987]
[1732082934070,0.10112,92677.0,92676.0,0.43645377]
[1732082934270,0.10112,92677.0,92676.0,0.75734591]
[1732082935079,0.10112,92677.0,92676.0,0.32089214]
[1732082935785,0.053894,92676.0,92675.0,0.34786214]
[1732082936087,0.053894,92676.0,92675.0,0.02697]
[1732082936970,0.117094,92676.0,92675.0,0.02697]
[1732082938887,0.117094,92676.0,92675.0,0.21959319]
[1732082940185,0.117094,92676.0,92675.0,0.02697]
[1732082940889,0.117094,92676.0,92675.0,0.21959319]
[1732082941088,0.117094,92676.0,92675.0,0.02697]
[1732082942985,0.18677237,92676.0,92675.0,0.02697]
[1732082943189,0.053899,92668.0,92667.0,0.19262319]
[1732082943387,0.48437737,92668.0,92667.0,0.19262319]
[1732082943574,0.0539,92667.0,92666.0,0.19262319]
[1732082943890,0.15186,92667.0,92663.0,0.25679645]
[1732082944093,0.19325774,92664.0,92663.0,0.25679645]
[1732082944481,0.19325774,92664.0,92663.0,0.25670267]
[1732082945096,0.19325774,92664.0,92663.0,0.26533267]
[1732082946583,0.19325774,92664.0,92663.0,0.00863]
[1732082947601,0.19325774,92664.0,92663.0,0.20117333]
[1732082947897,0.19325774,92664.0,92663.0,0.19254333]
[1732082948395,0.13935674,92664.0,92662.0,0.19254333]
[1732082948591,0.12358037,92663.0,92662.0,0.19254333]
[1732082948781,0.12358037,92663.0,92662.0,0.25670267]
[1732082950497,0.053903,92662.0,92661.0,0.26533267]
[1732082950691,0.053903,92662.0,92661.0,0.26530164]
[1732082951499,0.053903,92662.0,92661.0,0.00863]
[1732082952394,0.053903,92661.0,92660.0,0.25667164]
[1732082952693,0.053908,92653.0,92652.0,0.01]
[1732082952992,0.05391,92650.0,92649.0,0.0331]
[1732082953294,0.19326674,92650.0,92649.0,0.0331]
[1732082953983,0.19326674,92650.0,92649.0,0.04173]
[1732082954185,0.19326674,92650.0,92649.0,0.00863]
[1732082954795,0.19326674,92650.0,92649.0,0.00251005]
[1732082955500,0.053912,92646.0,92645.0,0.19256382]
[1732082955797,0.053916,92639.0,92638.0,0.0305]
[1732082955983,0.151876,92639.0,92638.0,0.0305]
[1732082956188,0.22155437,92639.0,92638.0,0.0305]
[1732082956584,0.22155437,92639.0,92638.0,0.05748]
[1732082958998,0.12359437,92639.0,92638.0,0.05748]
[1732082959196,0.19667671,92639.0,92638.0,0.05748]
[1732082962296,0.25059271,92639.0,92638.0,0.24988255]
[1732082962495,0.25059271,92639.0,92638.0,0.05748]
[1732082962902,0.32027108,92639.0,92638.0,0.05748]
[1732082963087,0.25059271,92639.0,92638.0,0.05748]
[1732082963288,0.32027108,92639.0,92638.0,0.05748]
[1732082963489,0.25059271,92639.0,92638.0,0.05748]
[1732082966897,0.15263271,92639.0,92638.0,0.05748]
[1732082967099,0.25055271,92639.0,92638.0,0.05748]
[1732082967603,0.25055271,92639.0,92638.0,0.24988255]
[1732082968204,0.25055271,92639.0,92638.0,0.05748]
[1732082968896,0.25055271,92639.0,92638.0,0.24999385]
[1732082969294,0.25055271,92639.0,92638.0,0.05748]
[1732082971303,0.25055271,92639.0,92638.0,0.24999846]
[1732082971498,0.25055271,92639.0,92638.0,0.05748]
[1732082975014,0.27213466,92639.0,92638.0,0.05748]
[1732082975715,0.27213466,92639.0,92629.0,0.01009591]
[1732082975716,0.053921,92630.0,92629.0,0.01009591]
[1732082976027,0.414721,92630.0,92629.0,9.591e-05]
[1732082978216,0.151841,92630.0,92629.0,9.591e-05]
[1732082978409,0.22151937,92630.0,92629.0,9.591e-05]
[1732082982615,0.22151937,92630.0,92629.0,0.19260934]
[1732082983008,0.22151937,92630.0,92629.0,9.591e-05]
[1732082983209,0.22151937,92630.0,92629.0,0.19260934]
[1732082983409,0.22151937,92630.0,92629.0,9.591e-05]
[1732082983608,0.22151937,92630.0,92629.0,0.19289859]
[1732082984404,0.12359937,92630.0,92629.0,9.591e-05]
[1732082984612,0.22155937,92630.0,92629.0,9.591e-05]
[1732082984825,0.053921,92630.0,92629.0,9.591e-05]
[1732082985007,0.22155937,92630.0,92629.0,9.591e-05]
[1732082985407,0.24314218,92630.0,92629.0,9.591e-05]
[1732082986207,0.18922118,92630.0,92629.0,9.591e-05]
[1732082986817,0.18922118,92630.0,92629.0,0.19288418]
[1732082987123,0.18922118,92630.0,92629.0,9.591e-05]
[1732082987514,0.18922118,92630.0,92629.0,0.192904]
[1732082987735,0.18922118,92630.0,92629.0,9.591e-05]
[1732082988224,0.25889955,92630.0,92629.0,9.591e-05]
[1732082988426,0.31282055,92630.0,92629.0,9.591e-05]
[1732082995108,0.31282055,92630.0,92629.0,0.00872591]
[1732082997728,0.31282055,92630.0,92629.0,9.591e-05]
[1732082998420,0.053925,92623.0,92620.0,0.01]
[1732082998624,0.053927,92620.0,92617.0,0.19280809]
[1732082998926,0.053927,92620.0,92615.0,0.22290809]
[1732082998927,0.12360537,92620.0,92615.0,0.22290809]
[1732082999317,0.12370206,92620.0,92619.0,0.0265195]
[1732083000523,0.05402369,92620.0,92619.0,0.0265195]
[1732083000920,9.669e-05,92620.0,92619.0,0.0265195]
[1732083001122,0.09797669,92620.0,92619.0,0.0249]
[1732083001725,0.1262659,92620.0,92619.0,0.0249]
[1732083001931,0.1801929,92620.0,92619.0,0.0249]
[1732083005241,0.24987127,92620.0,92619.0,0.0249]
[1732083005740,0.24987127,92620.0,92612.0,0.01]
[1732083006039,0.24987127,92620.0,92601.0,0.0315]
[1732083006040,0.50015674,92613.0,92601.0,0.0315]
[1732083006219,0.55409374,92602.0,92601.0,0.0315]
[1732083006425,0.58229537,92602.0,92601.0,0.0315]
[1732083009234,9.669e-05,92612.0,92601.0,0.0315]
[1732083009440,0.06967837,92602.0,92601.0,0.0315]
[1732083010440,0.09788,92602.0,92601.0,0.0315]
[1732083010838,0.13935674,92606.0,92601.0,0.0315]
[1732083011039,0.09788,92605.0,92601.0,0.0315]
[1732083011742,0.053937,92602.0,92601.0,0.0315]
[1732083014638,0.053938,92601.0,92600.0,0.10863]
[1732083018039,0.158433,92601.0,92600.0,0.10863]
[1732083018345,0.158433,92601.0,92600.0,0.1]
[1732083018749,0.158433,92601.0,92587.0,0.0316]
[1732083018750,0.053946,92588.0,92587.0,0.0316]
[1732083019053,0.256361,92588.0,92587.0,0.0316]
[1732083020047,0.256361,92588.0,92587.0,0.04024]
[1732083023555,0.28536611,92588.0,92587.0,0.04024]
[1732083023748,0.18087111,92588.0,92587.0,0.04024]
[1732083023944,0.23142011,92588.0,92587.0,0.04024]
[1732083029861,0.23134011,92588.0,92587.0,0.04024]
[1732083030452,0.05059823,92588.0,92587.0,0.04024]
[1732083030642,0.11943312,92588.0,92587.0,0.04024]
[1732083034946,0.38954093,92592.0,92587.0,0.094186]
[1732083035255,0.38954093,92592.0,92587.0,0.04024]
[1732083035256,0.202335,92588.0,92587.0,0.04024]
[1732083035662,0.256281,92588.0,92587.0,0.04024]
[1732083036661,0.29140252,92588.0,92587.0,0.04024]
[1732083036968,0.22159426,92588.0,92587.0,0.04024]
[1732083037858,0.22159426,92588.0,92587.0,0.29800116]
[1732083039151,0.22159426,92588.0,92587.0,0.04024]
[1732083042661,0.29140252,92588.0,92587.0,0.04024]
[1732083043563,0.29149796,92588.0,92587.0,0.00864]
[1732083044067,0.053948,92584.0,92583.0,0.25807747]
[1732083044265,0.053948,92584.0,92582.0,0.25807747]
[1732083044266,0.053949,92583.0,92582.0,0.25807747]
[1732083044461,0.053949,92582.0,92581.0,0.25807747]
[1732083044664,0.05395,92581.0,92580.0,0.25807747]
[1732083044866,0.12375826,92581.0,92580.0,0.25807747]
[1732083045268,0.053951,92579.0,92578.0,0.25807747]
[1732083045462,0.12375926,92579.0,92578.0,0.25807747]
[1732083045769,0.12375926,92579.0,92578.0,0.26671747]
[1732083046265,0.12375926,92579.0,92578.0,0.00864]
[1732083048569,0.12385595,92579.0,92578.0,0.00864]
[1732083049165,0.15163507,92579.0,92578.0,0.00864]
[1732083054978,0.02787581,92579.0,92578.0,0.00864]
[1732083055286,0.09768407,92579.0,92578.0,0.00864]
[1732083056581,0.02787581,92579.0,92578.0,0.00864]
[1732083056764,0.12563581,92579.0,92578.0,0.00864]
[1732083057085,0.02787581,92579.0,92578.0,0.3308627]
[1732083057268,0.12563581,92579.0,92578.0,0.00864]
[1732083058564,0.12563581,92579.0,92570.0,0.38654436]
[1732083058769,0.12563581,92579.0,92573.0,0.06980826]
[1732083058970,0.12563581,92579.0,92574.0,0.47268614]
[1732083059264,0.12563581,92579.0,92578.0,0.25769771]
[1732083059676,0.12563581,92579.0,92574.0,0.053954]
[1732083059977,0.19544407,92579.0,92578.0,0.25769321]
[1732083061377,0.19544407,92579.0,92577.0,0.00864]
[1732083066881,9.669e-05,92579.0,92578.0,0.39384826]
[1732083067082,0.10896,92588.0,92578.0,0.79933963]
[1732083067280,0.10396,92588.0,92587.0,0.12375426]
[1732083067672,0.10396,92588.0,92587.0,0.18745426]
[1732083068191,0.10409078,92588.0,92587.0,0.117646]
[1732083068686,0.005,92592.0,92587.0,0.45750826]
[1732083068875,0.10396,92593.0,92591.0,0.053944]
[1732083069077,0.02830865,92597.0,92592.0,0.1024512]
[1732083069387,0.10896,92604.0,92603.0,0.053937]
[1732083069688,0.10396,92604.0,92603.0,0.053937]
[1732083071184,0.053932,92611.0,92601.0,0.3608]
[1732083071383,0.10396,92610.0,92607.0,0.053934]
[1732083071786,0.07552235,92611.0,92609.0,0.053933]
[1732083071986,0.157892,92611.0,92609.0,0.053933]
[1732083073400,0.10396,92611.0,92609.0,0.053933]
[1732083073691,0.005,92619.0,92618.0,0.053928]
[1732083073877,0.10396,92619.0,92618.0,0.053928]
[1732083075285,0.053927,92621.0,92618.0,0.053928]
[1732083075482,0.02159035,92622.0,92621.0,0.053926]
[1732083075791,0.12555035,92622.0,92621.0,0.053926]
[1732083075989,0.02159035,92622.0,92621.0,0.053926]
[1732083076184,0.12555035,92622.0,92621.0,0.053926]
[1732083076980,0.02159035,92622.0,92621.0,0.053926]
[1732083077704,0.157846,92623.0,92617.0,0.3608]
[1732083077990,0.157846,92623.0,92617.0,0.414729]
[1732083078387,0.157846,92623.0,92618.0,0.053928]
[1732083079096,0.10392,92622.0,92618.0,0.053928]
[1732083079292,0.053926,92623.0,92618.0,0.053928]
[1732083079485,0.053926,92623.0,92619.0,0.053927]
[1732083079486,0.157846,92623.0,92619.0,0.053927]
[1732083079693,0.17943047,92623.0,92619.0,0.053927]
[1732083080294,0.17943047,92623.0,92620.0,0.053927]
[1732083080994,0.17943047,92623.0,92621.0,0.00863]
[1732083081789,0.005,92628.0,92625.0,0.053924]
[1732083081995,0.005,92633.0,92625.0,0.053924]
[1732083082307,0.005,92633.0,92625.0,0.32388]
[1732083082600,0.005,92636.0,92634.0,0.053919]
[1732083082897,0.02159035,92637.0,92635.0,0.053918]
[1732083085896,0.053916,92639.0,92635.0,0.053918]
[1732083089500,0.10392,92641.0,92638.0,0.3608]
[1732083089892,0.02157728,92639.0,92638.0,0.3608]
[1732083090512,0.02157728,92639.0,92632.0,0.3608]
[1732083090799,0.10443371,92633.0,92632.0,0.3608]
[1732083095001,0.02157728,92639.0,92635.0,0.053918]
[1732083095196,0.02157728,92639.0,92632.0,0.3608]
[1732083095392,0.10104,92638.0,92632.0,0.3608]
[1732083095592,0.10104,92638.0,92637.0,0.053917]
[1732083096592,0.10104,92641.0,92637.0,0.053917]
[1732083096893,0.11229714,92642.0,92640.0,0.3608]
[1732083096894,0.13164,92642.0,92640.0,0.3608]
[1732083097091,0.13164,92642.0,92641.0,0.053915]
[1732083097692,0.053912,92646.0,92640.0,0.3608]
[1732083098004,0.02779577,92648.0,92645.0,0.053912]
[1732083098204,0.005,92656.0,92655.0,0.053907]
[1732083098392,0.0029,92665.0,92655.0,0.053907]